fUST/lending_fUST_20251122
["ID","MTS","AMOUNT","RATE_DAILY","PERIOD"]
[394656457,1763826643340,-500.0,0.00016438,2]
[394656458,1763826643350,-500.0,0.00016438,2]
[394656459,1763826643360,-500.0,0.00016438,2]
[394656460,1763826643369,-500.0,0.00016438,2]
[394656461,1763826643379,-500.0,0.00016438,2]
[394656462,1763826643389,-500.0,0.00016438,2]
[394656463,1763826643399,-500.0,0.00016438,2]
[394656464,1763826643409,-500.0,0.00016438,2]
[394656465,1763826643419,-500.0,0.00016438,2]
[394656466,1763826643428,-500.0,0.00016438,2]
[394656467,1763826643438,-500.0,0.00016438,2]
[394656468,1763826643448,-500.0,0.00016438,2]
[394656469,1763826643458,-500.0,0.00016438,2]
[394656470,1763826643471,-500.0,0.00016438,2]
[394656471,1763826643481,-500.0,0.00016438,2]
[394656472,1763826643491,-500.0,0.00016438,2]
[394656473,1763826643501,-500.0,0.00016438,2]
[394656474,1763826643512,-500.0,0.00016438,2]
[394656475,1763826643522,-500.0,0.00016438,2]
[394656476,1763826643532,-500.0,0.00016438,2]
[394656477,1763826643543,-500.0,0.00016438,2]
[394656478,1763826643554,-500.0,0.00016438,2]
[394656479,1763826643563,-500.0,0.00016438,2]
[394656480,1763826643572,-500.0,0.00016438,2]
[394656481,1763826643581,-500.0,0.00016438,2]
[394656482,1763826643591,-500.0,0.00016438,2]
[394656483,1763826643600,-500.0,0.00016438,2]
[394656484,1763826643610,-500.0,0.00016438,2]
[394656485,1763826643620,-500.0,0.00016438,2]
[394656486,1763826643630,-500.0,0.00016438,2]
[394656487,1763826643639,-500.0,0.00016438,2]
[394656488,1763826643649,-500.0,0.00016438,2]
[394656489,1763826643658,-500.0,0.00016438,2]
[394656490,1763826643668,-500.0,0.00016438,2]
[394656491,1763826643677,-151.0,0.00016438,2]
[394656492,1763826643686,-151.0,0.00016438,2]
[394656493,1763826643695,-151.0,0.00016438,2]
[394656494,1763826643705,-155.329302,0.00016438,2]
[394656495,1763826643714,-150.0,0.00016438,2]
[394656496,1763826643723,-2634.53217319,0.00016473,2]
[394656497,1763826643734,-1829.53623138,0.00016473,2]
[394656498,1763826643743,-1170.90318808,0.00016473,2]
[394656499,1763826643753,-658.6330433,0.00016473,2]
[394656500,1763826643762,-365.90724628,0.00016473,2]
[394656501,1763826643772,-1484.69204894,0.00016473,2]
[394656505,1763826643907,-950.20291132,0.00016473,2]
[394656506,1763826643937,-534.48913762,0.00016473,2]
[394656507,1763826643948,-296.93840979,0.00016473,2]
[394656508,1763826643958,-160.0,0.00016612,5]
[394656509,1763826643968,-3000.0,0.00016853,2]
[394656510,1763826643977,-2625.2665265,0.00016898,2]
[394656511,1763826643987,-2000.0,0.00016959,7]
[394656512,1763826643996,-160.0,0.00016971,6]
[394656513,1763826644005,-198.05801022,0.00016981,2]
[394656514,1763826644015,-1500.0,0.00016981,2]
[394656515,1763826644024,-732.4747464,0.00016981,2]
[394656516,1763826644033,-760.0,0.00016986,2]
[394656517,1763826644043,-300.0,0.00016986,2]
[394656518,1763826644052,-32674.08522671,0.00016998,2]
[394656519,1763826644061,-151.0,0.00016998,2]
[394656520,1763826644071,-151.0,0.00016998,2]
[394656521,1763826644080,-151.0,0.00016998,2]
[394656522,1763826644090,-1876.891047,0.00016998,2]
[394656523,1763826644099,-1876.891047,0.00016998,2]
[394656524,1763826644108,-1876.891047,0.00016998,2]
[394656525,1763826644118,-1876.891047,0.00016998,2]
[394656526,1763826644128,-8810.28160113,0.00017,2]
[394656527,1763826644137,-1881.85846445,0.00017032,7]
[394656528,1763826644147,-923.00408309,0.00017032,7]
[394656529,1763826644156,-3068.86061391,0.00017083,2]
[394656530,1763826644165,-285.0,0.00017201,2]
[394656531,1763826644174,-160.0,0.0001733,7]
[394656532,1763826644184,-3500.0,0.00017401,2]
[394656533,1763826644194,-29693.96477784,0.00017516,3]
[394656642,1763826646179,-150.0,9.289e-05,2]
[394656643,1763826646189,-150.0,0.00012289,2]
[394656644,1763826646199,-151.0,0.00014594,2]
[394656645,1763826646208,-151.0,0.00014594,2]
[394656646,1763826646217,-151.0,0.00015174,2]
[394656647,1763826646227,-151.0,0.00015174,2]
[394656648,1763826646238,-151.0,0.00016438,2]
[394656649,1763826646247,-151.0,0.00016438,2]
[394656650,1763826646256,-151.0,0.00016438,2]
[394656651,1763826646266,-299.683335,0.00016438,2]
[394656652,1763826646274,-7414.436665,0.00017516,3]
[394656657,1763826647003,-891.59855716,0.00017516,3]
[394656658,1763826647013,-151.0,0.00017516,2]
[394656659,1763826647024,-151.0,0.00017516,2]
[394656660,1763826647034,-38000.0,0.00017525,3]
[394656661,1763826647044,-2000.0,0.00017529,2]
[394656662,1763826647054,-38000.0,0.00017534,3]
[394656663,1763826647063,-500.0,0.00017534,2]
[394656664,1763826647078,-860.0,0.00017534,2]
[394656665,1763826647095,-450.0,0.00017534,2]
[394656666,1763826647105,-38000.0,0.00017542,3]
[394656667,1763826647115,-38000.0,0.00017551,3]
[394656668,1763826647124,-38000.0,0.0001756,3]
[394656669,1763826647134,-38000.0,0.00017569,3]
[394656670,1763826647143,-163.26732045,0.00017573,2]
[394656671,1763826647152,-38000.0,0.00017578,3]
[394656672,1763826647161,-38000.0,0.00017586,3]
[394656673,1763826647171,-38000.0,0.00017595,3]
[394656674,1763826647180,-2124.66285169,0.000176,2]
[394656675,1763826647189,-38000.0,0.00017604,3]
[394656676,1763826647201,-160.064634,0.00017604,2]
[394656677,1763826647210,-160.064634,0.00017604,2]
[394656678,1763826647220,-160.064634,0.00017604,2]
[394656679,1763826647229,-160.064632,0.00017604,2]
[394656680,1763826647239,-151.0,0.00017604,2]
[394656681,1763826647248,-151.0,0.00017604,2]
[394656682,1763826647257,-38000.0,0.00017613,3]
[394656683,1763826647267,-38000.0,0.00017622,3]
[394656684,1763826647276,-38000.0,0.00017622,3]
[394656685,1763826647285,-331.0,0.00017623,2]
[394656686,1763826647294,-151.0,0.0001763,2]
[394656687,1763826647304,-151.0,0.0001763,2]
[394656688,1763826647313,-151.0,0.0001763,2]
[394656689,1763826647323,-1876.891047,0.0001763,2]
[394656690,1763826647332,-1876.891047,0.0001763,2]
[394656691,1763826647341,-1876.891047,0.0001763,2]
[394656692,1763826647350,-1876.891047,0.0001763,2]
[394656693,1763826647359,-38000.0,0.0001763,3]
[394656694,1763826647368,-38000.0,0.0001763,3]
[394656695,1763826647378,-38000.0,0.00017639,3]
[394656696,1763826647387,-38000.0,0.00017639,3]
[394656697,1763826647397,-38000.0,0.00017648,3]
[394656698,1763826647406,-38000.0,0.00017648,3]
[394656699,1763826647416,-38000.0,0.00017648,3]
[394656700,1763826647425,-38000.0,0.00017648,3]
[394656701,1763826647434,-38000.0,0.00017648,3]
[394656702,1763826647444,-38000.0,0.00017648,3]
[394656703,1763826647454,-182.48625785,0.00017648,3]
[394656704,1763826647464,-160.0,0.00017689,8]
[394656705,1763826647478,-150.0,0.00017719,2]
[394656706,1763826647488,-203.8933168,0.0001775,24]
[394656707,1763826647497,-424.0,0.00017784,2]
[394656708,1763826647507,-1000.0,0.0001787,2]
[394656709,1763826647516,-1000.0,0.0001787,2]
[394656710,1763826647526,-1000.0,0.0001787,2]
[394656711,1763826647535,-162.0,0.000179,3]
[394656712,1763826647545,-163.34555757,0.000179,3]
[394656713,1763826647555,-4000.0,0.00017949,2]
[394656714,1763826647564,-202.82075105,0.00017973,2]
[394656715,1763826647573,-463.61226079,0.0001798,2]
[394656716,1763826647583,-16217.45348091,0.00018,3]
[394656717,1763826647592,-353.21105852,0.00018,3]
[394656718,1763826647601,-500.0,0.00018,2]
[394656719,1763826647612,-148487.01209415,0.00018,2]
[394656720,1763826647621,-24530.04926019,0.00018,2]
[394656721,1763826647630,-160.0,0.00018049,9]
[394656722,1763826647640,-2500.0,0.00018077,2]
[394656723,1763826647650,-960.0,0.00018082,2]
[394656724,1763826647659,-1800.0,0.00018082,2]
[394656725,1763826647669,-301.86515103,0.00018082,2]
[394656726,1763826647678,-353.21105852,0.000181,3]
[394656727,1763826647687,-2152.0,0.00018289,2]
[394656728,1763826647698,-630.0,0.00018289,2]
[394656729,1763826647708,-989.0,0.00018289,2]
[394656730,1763826647717,-414.0,0.00018289,2]
[394656731,1763826647727,-600.0,0.00018336,2]
[394656732,1763826647739,-500.0,0.00018397,2]
[394656733,1763826647749,-160.0,0.00018408,10]
[394656734,1763826647759,-200.0,0.00018411,7]
[394656735,1763826647768,-200.0,0.00018411,7]
[394656736,1763826647778,-316.98047653,0.00018411,7]
[394656737,1763826647787,-150.0,0.00018418,2]
[394656738,1763826647797,-150.0,0.00018418,2]
[394656739,1763826647807,-4372.13129324,0.00018497,2]
[394656740,1763826647817,-10000.0,0.000185,5]
[394656741,1763826647826,-500.0,0.00018605,2]
[394656742,1763826647847,-2289.3960287,0.00018625,2]
[394656743,1763826647860,-500.0,0.0001863,2]
[394656744,1763826647870,-1060.0,0.0001863,2]
[394656745,1763826647880,-4422.0,0.0001866,2]
[394656746,1763826647889,-500.0,0.00018767,2]
[394656747,1763826647898,-568.47296843,0.00018767,2]
[394656748,1763826647907,-160.0,0.00018767,11]
[394656749,1763826647917,-180.46707174,0.00018767,5]
[394656750,1763826647926,-158.0047984,0.00018795,2]
[394656751,1763826647935,-302.66710251,0.000189,2]
[394656752,1763826647945,-302.63687509,0.000189,2]
[394656753,1763826647954,-158.0047984,0.00018904,2]
[394656754,1763826647963,-158.0047984,0.00018986,2]
[394656755,1763826647973,-194.19,0.00019,5]
[394656756,1763826647982,-353.77713721,0.00019,20]
[394656757,1763826647991,-9632.43785409,0.00019,2]
[394656758,1763826648000,-1609.919227,0.00019,2]
[394656759,1763826648009,-250.0,0.00019,2]
[394656760,1763826648019,-250.0,0.00019,2]
[394656761,1763826648029,-250.0,0.00019,2]
[394656762,1763826648039,-149415.91087166,0.0001901,2]
[394656763,1763826648049,-600.0,0.00019038,2]
[394656764,1763826648059,-158.0047984,0.00019068,2]
[394656765,1763826648069,-428.83785837,0.00019089,2]
[394656766,1763826648078,-302.63687509,0.00019089,2]
[394656767,1763826648087,-158.0047984,0.00019151,2]
[394656768,1763826648096,-1800.0,0.00019178,2]
[394656769,1763826648106,-150.0,0.00019178,2]
[394656770,1763826648117,-300.0,0.00019178,2]
[394656771,1763826648127,-450.0,0.00019178,2]
[394656772,1763826648136,-600.0,0.00019178,2]
[394656773,1763826648145,-1160.0,0.00019178,2]
[394656774,1763826648155,-151.0,0.00019178,2]
[394656775,1763826648165,-151.0,0.00019178,2]
[394656776,1763826648175,-151.0,0.00019178,2]
[394656777,1763826648186,-151.0,0.00019178,2]
[394656778,1763826648195,-151.0,0.00019178,2]
[394656779,1763826648205,-151.0,0.00019178,2]
[394656780,1763826648215,-151.0,0.00019178,2]
[394656781,1763826648224,-151.0,0.00019178,2]
[394656782,1763826648234,-151.0,0.00019178,2]
[394656783,1763826648381,-151.0,0.00019178,2]
[394656784,1763826648391,-151.0,0.00019178,2]
[394656785,1763826648403,-151.0,0.00019178,2]
[394656786,1763826648413,-151.0,0.00019178,2]
[394656787,1763826648422,-151.0,0.00019178,2]
[394656788,1763826648432,-151.0,0.00019178,2]
[394656789,1763826648442,-276.704122,0.00019178,2]
[394656790,1763826648452,-200.0,0.000192,7]
[394656791,1763826648462,-200.0,0.000192,7]
[394656792,1763826648477,-200.0,0.000192,7]
[394656793,1763826648487,-312.0,0.00019201,2]
[394656794,1763826648496,-500.0,0.00019202,2]
[394656795,1763826648506,-158.0047984,0.0001926,2]
[394656796,1763826648517,-302.63687509,0.00019278,2]
[394656797,1763826648527,-600.0,0.00019281,2]
[394656798,1763826648537,-150.0,0.00019297,2]
[394656799,1763826648549,-285.25137636,0.00019315,3]
[394656800,1763826648559,-158.0047984,0.00019342,2]
[394656801,1763826648568,-79988.11,0.000194,2]
[394656802,1763826648578,-250.0,0.000194,2]
[394656803,1763826648587,-250.0,0.000194,2]
[394656804,1763826648597,-250.0,0.000194,2]
[394656805,1763826648607,-187.9,0.000194,2]
[394656806,1763826648616,-600.0,0.00019422,2]
[394656807,1763826648626,-158.0047984,0.00019425,2]
[394656808,1763826648635,-302.63687509,0.00019467,2]
[394656809,1763826648644,-505.59895175,0.000195,2]
[394656810,1763826648653,-500.0,0.000195,3]
[394656811,1763826648663,-3000000.0,0.000195,2]
[394656812,1763826648672,-158.0047984,0.00019534,2]
[394656813,1763826648682,-158.0047984,0.00019616,2]
[394656814,1763826648691,-302.63687509,0.00019656,2]
[394656815,1763826648702,-1000.0,0.00019657,10]
[394656816,1763826648711,-1000.0,0.00019657,10]
[394656817,1763826648720,-1000.0,0.00019657,10]
[394656818,1763826648730,-715.0,0.00019657,10]
[394656819,1763826648741,-500.0,0.00019659,2]
[394656820,1763826648751,-152.29371738,0.00019698,2]
[394656821,1763826648760,-158.0047984,0.00019699,2]
[394656822,1763826648769,-600.0,0.00019706,2]
[394656823,1763826648779,-500.0,0.00019726,2]
[394656824,1763826648788,-1260.0,0.00019726,2]
[394656825,1763826648797,-3274.69702664,0.00019738,2]
[394656826,1763826648807,-725.33184105,0.00019741,2]
[394656827,1763826648817,-158.0047984,0.00019808,2]
[394656828,1763826648826,-600.0,0.00019809,2]
[394656829,1763826648835,-453.95531264,0.00019845,4]
[394656830,1763826648844,-1008.668428,0.0001986,5]
[394656831,1763826648853,-1000.0,0.0001988,5]
[394656832,1763826648863,-300.0,0.000199,2]
[394656833,1763826648872,-1000.0,0.000199,5]
[394656834,1763826648881,-1000.0,0.0001992,5]
[394656835,1763826648890,-1000.0,0.0001994,5]
[394656836,1763826648899,-1000.0,0.0001996,5]
[394656837,1763826648908,-1000.0,0.0001998,5]
[394656838,1763826648917,-678.13912239,0.0002,2]
[394656839,1763826648926,-14619.89936393,0.0002,2]
[394656840,1763826648936,-369.59553034,0.0002,2]
[394656841,1763826648948,-1337.04047534,0.0002,2]
[394656842,1763826648958,-3603.0,0.0002,2]
[394656843,1763826648968,-2000.0,0.0002,2]
[394656844,1763826648977,-948.0,0.0002,2]
[394656845,1763826648987,-2000.0,0.0002,2]
[394656846,1763826648996,-2000.0,0.0002,4]
[394656847,1763826649006,-2000.0,0.0002,2]
[394656848,1763826649016,-1000.0,0.0002,14]
[394656849,1763826649025,-300.7076295,0.0002,10]
[394656850,1763826649034,-500.0,0.0002,7]
[394656851,1763826649045,-500.0,0.0002,7]
[394656852,1763826649054,-200.83,0.0002,2]
[394656853,1763826649065,-1000.0,0.0002,5]
[394656854,1763826649074,-250.0,0.0002,10]
[394656855,1763826649083,-162.63629817,0.0002,2]
[394656856,1763826649093,-453.95531264,0.00020034,4]
[394656857,1763826649104,-500.0,0.00020036,2]
[394656858,1763826649114,-507.56377591,0.00020052,2]
[394656859,1763826649123,-250.0,0.000201,10]
[394656860,1763826649132,-1230.941153,0.00020187,2]
[394656861,1763826649142,-900.0,0.000202,10]
[394656862,1763826649151,-402.187392,0.000202,10]
[394656863,1763826649161,-2000.0,0.00020219,7]
[394656864,1763826649170,-453.95531264,0.00020223,4]
[394656865,1763826649179,-1800.0,0.00020274,2]
[394656866,1763826649188,-1360.0,0.00020274,2]
[394656867,1763826649199,-600.0,0.00020292,2]
[394656868,1763826649208,-366.90797024,0.00020326,30]
[394656869,1763826649219,-229.0,0.00020411,3]
[394656870,1763826649228,-453.95531264,0.00020412,4]
[394656871,1763826649238,-1200.0,0.000205,2]
[394656872,1763826649247,-250.0,0.000205,2]
[394656873,1763826649258,-250.0,0.000205,2]
[394656874,1763826649268,-624.2330074,0.00020538,30]
[394656875,1763826649277,-2486.628912,0.00020548,2]
[394656876,1763826649287,-151.0,0.00020548,3]
[394656877,1763826649296,-151.0,0.00020548,3]
[394656878,1763826649306,-151.0,0.00020548,3]
[394656879,1763826649314,-151.0,0.00020548,3]
[394656880,1763826649324,-151.0,0.00020548,3]
[394656881,1763826649335,-151.0,0.00020548,3]
[394656882,1763826649344,-151.0,0.00020548,3]
[394656883,1763826649353,-151.0,0.00020548,3]
[394656884,1763826649362,-151.0,0.00020548,3]
[394656885,1763826649372,-151.0,0.00020548,3]
[394656886,1763826649381,-151.0,0.00020548,3]
[394656887,1763826649391,-151.0,0.00020548,3]
[394656888,1763826649400,-274.598706,0.00020548,3]
[394656889,1763826649410,-152.29371738,0.00020554,2]
[394656890,1763826649420,-500.0,0.00020569,2]
[394656891,1763826649429,-453.57754548,0.00020601,4]
[394656892,1763826649439,-500.0,0.00020661,2]
[394656893,1763826649448,-600.0,0.00020768,2]
[394656894,1763826649457,-150.0,0.00020781,2]
[394656895,1763826649469,-500.0,0.00020821,2]
[394656896,1763826649479,-1460.0,0.00020822,2]
[394656897,1763826649488,-500.0,0.00020827,2]
[394656898,1763826649498,-500.0,0.00020921,2]
[394656899,1763826649507,-2000.0,0.00021,2]
[394656900,1763826649518,-2000.0,0.00021,2]
[394656901,1763826649527,-2000.0,0.00021,2]
[394656902,1763826649536,-3000.0,0.00021,2]
[394656903,1763826649547,-200.0,0.00021,30]
[394656904,1763826649556,-200.0,0.00021,30]
[394656905,1763826649565,-200.0,0.00021,30]
[394656906,1763826649574,-3000.0,0.0002101,2]
[394656907,1763826649583,-3000.0,0.0002102,2]
[394656908,1763826649592,-3000.0,0.0002103,2]
[394656909,1763826649601,-3000.0,0.0002104,2]
[394656910,1763826649610,-3000.0,0.0002105,2]
[394656911,1763826649619,-3000.0,0.0002106,2]
[394656912,1763826649628,-3000.0,0.0002107,2]
[394656913,1763826649637,-3000.0,0.0002108,2]
[394656914,1763826649646,-3000.0,0.0002109,2]
[394656915,1763826649655,-3000.0,0.000211,2]
[394656916,1763826649664,-500.0,0.00021102,2]
[394656917,1763826649673,-3000.0,0.0002111,2]
[394656918,1763826649683,-3000.0,0.0002112,2]
[394656919,1763826649692,-3000.0,0.0002113,2]
[394656920,1763826649701,-3000.0,0.0002114,2]
[394656921,1763826649711,-3000.0,0.0002115,2]
[394656922,1763826649719,-3000.0,0.0002116,2]
[394656923,1763826649729,-3000.0,0.0002117,2]
[394656924,1763826649738,-3000.0,0.0002118,2]
[394656925,1763826649747,-3000.0,0.0002119,2]
[394656926,1763826649756,-3000.0,0.000212,2]
[394656927,1763826649766,-339.0,0.00021201,2]
[394656928,1763826649776,-600.0,0.00021202,2]
[394656929,1763826649787,-3000.0,0.0002121,2]
[394656930,1763826649796,-3000.0,0.0002122,2]
[394656931,1763826649807,-3000.0,0.0002123,2]
[394656932,1763826649816,-500.0,0.00021233,2]
[394656933,1763826649825,-3000.0,0.0002124,2]
[394656934,1763826649834,-3000.0,0.0002125,2]
[394656935,1763826649843,-3000.0,0.0002126,2]
[394656936,1763826649852,-3000.0,0.0002127,2]
[394656937,1763826649861,-289.43643318,0.00021279,2]
[394656938,1763826649870,-3000.0,0.0002128,2]
[394656939,1763826649880,-2146.0,0.00021289,2]
[394656940,1763826649889,-630.0,0.00021289,2]
[394656941,1763826649898,-989.0,0.00021289,2]
[394656942,1763826649907,-3000.0,0.0002129,2]
[394656943,1763826649916,-3000.0,0.000213,2]
[394656944,1763826649925,-3000.0,0.0002131,2]
[394656945,1763826649935,-3000.0,0.0002132,2]
[394656946,1763826649944,-3000.0,0.0002133,2]
[394656947,1763826649953,-1000.0,0.00021332,2]
[394656948,1763826649963,-3000.0,0.0002134,2]
[394656949,1763826649972,-3000.0,0.0002135,2]
[394656950,1763826649981,-3000.0,0.0002136,2]
[394656951,1763826649990,-316.390269,0.0002137,2]
[394656952,1763826650000,-316.390269,0.0002137,2]
[394656953,1763826650009,-316.390269,0.0002137,2]
[394656954,1763826650018,-316.390269,0.0002137,2]
[394656955,1763826650027,-316.390269,0.0002137,2]
[394656956,1763826650036,-316.390269,0.0002137,2]
[394656957,1763826650046,-316.390269,0.0002137,2]
[394656958,1763826650055,-316.390269,0.0002137,2]
[394656959,1763826650064,-316.390269,0.0002137,2]
[394656960,1763826650073,-316.390269,0.0002137,2]
[394656961,1763826650082,-316.390269,0.0002137,2]
[394656962,1763826650091,-316.390269,0.0002137,2]
[394656963,1763826650100,-316.390269,0.0002137,2]
[394656964,1763826650109,-316.390269,0.0002137,2]
[394656965,1763826650118,-316.390269,0.0002137,2]
[394656966,1763826650127,-316.390269,0.0002137,2]
[394656967,1763826650137,-316.390269,0.0002137,2]
[394656968,1763826650146,-316.390269,0.0002137,2]
[394656969,1763826650155,-316.390269,0.0002137,2]
[394656970,1763826650164,-316.390273,0.0002137,2]
[394656971,1763826650173,-1800.0,0.0002137,2]
[394656972,1763826650182,-3000.0,0.0002137,2]
[394656973,1763826650191,-1560.0,0.0002137,2]
[394656974,1763826650200,-3000.0,0.0002138,2]
[394656975,1763826650210,-3000.0,0.0002139,2]
[394656976,1763826650219,-300.0,0.00021393,2]
[394656977,1763826650230,-3000.0,0.000214,2]
[394656978,1763826650239,-3000.0,0.0002141,2]
[394656979,1763826650249,-152.29371738,0.0002141,2]
[394656980,1763826650258,-3000.0,0.0002142,2]
[394656981,1763826650267,-5667.72799,0.0002143,2]
[394656982,1763826650276,-3843.9054837,0.000215,5]
[394656983,1763826650286,-230.0,0.00021507,4]
[394656984,1763826650295,-289.43643318,0.00021563,17]
[394656985,1763826650304,-620.21165037,0.00021564,30]
[394656986,1763826650314,-1000.0,0.00021623,10]
[394656987,1763826650324,-1000.0,0.00021623,10]
[394656988,1763826650333,-1000.0,0.00021623,10]
[394656989,1763826650342,-1500.0,0.00021743,2]
[394656990,1763826650351,-4200.0,0.000218,2]
[394656991,1763826650361,-494.79977897,0.00021826,2]
[394656992,1763826650371,-289.43643318,0.00021846,32]
[394656993,1763826650382,-500.0,0.00021917,2]
[394656994,1763826650391,-171.890238,0.00021918,7]
[394656995,1763826650401,-171.890238,0.00021918,7]
[394656996,1763826650410,-171.890238,0.00021918,7]
[394656997,1763826650420,-171.890238,0.00021918,7]
[394656998,1763826650429,-171.890238,0.00021918,7]
[394656999,1763826650439,-171.890238,0.00021918,7]
[394657000,1763826650450,-171.890238,0.00021918,7]
[394657001,1763826650461,-171.890238,0.00021918,7]
[394657002,1763826650475,-171.890238,0.00021918,7]
[394657003,1763826650484,-171.890238,0.00021918,7]
[394657004,1763826650495,-171.890238,0.00021918,7]
[394657005,1763826650504,-171.890238,0.00021918,7]
[394657006,1763826650516,-171.890238,0.00021918,7]
[394657007,1763826650525,-171.890238,0.00021918,7]
[394657008,1763826650536,-171.890238,0.00021918,7]
[394657009,1763826650547,-171.890238,0.00021918,7]
[394657010,1763826650557,-171.890238,0.00021918,7]
[394657011,1763826650569,-171.890238,0.00021918,7]
[394657012,1763826650579,-171.890238,0.00021918,7]
[394657013,1763826650589,-171.890248,0.00021918,7]
[394657014,1763826650598,-300.0,0.00021918,2]
[394657015,1763826650609,-150.0,0.00021918,2]
[394657016,1763826650619,-151.0,0.00021918,2]
[394657017,1763826650628,-302.0,0.00021918,2]
[394657018,1763826650638,-1519.18293188,0.00021918,2]
[394657019,1763826650648,-500.0,0.00021924,2]
[394657020,1763826650658,-600.0,0.00021941,2]
[394657021,1763826650668,-494.79977897,0.00021958,9]
[394657022,1763826650678,-658.36650346,0.00022,2]
[394657023,1763826650688,-155.2,0.00022,14]
[394657024,1763826650699,-1000.0,0.00022,22]
[394657025,1763826650709,-3210.02,0.00022,7]
[394657026,1763826650718,-1160.0,0.00022,2]
[394657027,1763826650727,-1160.0,0.00022,2]
[394657028,1763826650737,-346187.55,0.00022,2]
[394657029,1763826650746,-691.0,0.00022,2]
[394657030,1763826650756,-353.21105852,0.00022,7]
[394657031,1763826650766,-500.0,0.00022037,2]
[394657032,1763826650776,-330.0,0.00022071,2]
[394657033,1763826650784,-494.79977897,0.00022089,17]
[394657034,1763826650794,-499.3,0.0002209,2]
[394657035,1763826650802,-532.04975987,0.0002212,5]
[394657036,1763826650812,-289.43643318,0.0002213,48]
[394657037,1763826650822,-905.71236854,0.00022154,2]
[394657038,1763826650833,-494.79977897,0.0002222,25]
[394657039,1763826650843,-150.0,0.00022266,2]
[394657040,1763826650852,-152.29371738,0.00022267,2]
[394657041,1763826650861,-500.0,0.00022268,2]
[394657042,1763826651000,-494.79977897,0.00022351,32]
[394657043,1763826651010,-289.43643318,0.00022413,63]
[394657044,1763826651019,-300.0,0.00022466,2]
[394657045,1763826651028,-1800.0,0.00022466,2]
[394657046,1763826651038,-494.79977897,0.00022483,40]
[394657047,1763826651047,-900.0,0.00022489,2]
[394657048,1763826651056,-346187.55,0.000226,2]
[394657049,1763826651065,-232.0,0.00022603,7]
[394657050,1763826651074,-494.79977897,0.00022614,48]
[394657051,1763826651084,-620.01058252,0.00022643,30]
[394657052,1763826651093,-600.0,0.00022658,2]
[394657053,1763826651102,-600.0,0.00022674,2]
[394657054,1763826651111,-289.43643318,0.00022697,79]
[394657055,1763826651120,-3210.02,0.000227,7]
[394657056,1763826651129,-4399.53957797,0.0002272,2]
[394657057,1763826651138,-600.0,0.0002274,2]
[394657058,1763826651147,-494.79977897,0.00022745,56]
[394657059,1763826651156,-600.0,0.00022748,2]
[394657060,1763826651165,-500.0,0.00022867,2]
[394657061,1763826651175,-494.79977897,0.00022877,63]
[394657062,1763826651183,-281.504401,0.00022893,15]
[394657063,1763826651193,-645.5,0.00022893,15]
[394657064,1763826651202,-289.43643318,0.00022981,94]
[394657065,1763826651211,-1000.0,0.00023,23]
[394657066,1763826651220,-838.48,0.00023,7]
[394657067,1763826651230,-335.0,0.00023,7]
[394657068,1763826651239,-494.79977897,0.00023008,71]
[394657069,1763826651248,-200.0,0.00023013,30]
[394657070,1763826651257,-200.0,0.00023013,30]
[394657071,1763826651267,-200.0,0.00023013,30]